fUST/lending_fUST_20260106
["ID","MTS","AMOUNT","RATE_DAILY","PERIOD"]
[400491247,1767661840436,-159.85184357,0.00013699,2]
[400491248,1767661840447,-500.0,0.00013699,2]
[400491249,1767661840456,-500.0,0.00013699,2]
[400491250,1767661840466,-500.0,0.00013699,2]
[400491251,1767661840476,-159.78426708,0.00013699,2]
[400491252,1767661840487,-500.0,0.00013699,2]
[400491253,1767661840497,-500.0,0.00013699,2]
[400491254,1767661840507,-500.0,0.00013699,2]
[400491255,1767661840517,-500.0,0.00013699,2]
[400491256,1767661840527,-500.0,0.00013699,2]
[400491257,1767661840536,-500.0,0.00013699,2]
[400491258,1767661840546,-165.14399286,0.00013699,2]
[400491259,1767661840555,-304.13145531,0.00013699,2]
[400491260,1767661840564,-500.0,0.00013699,2]
[400491261,1767661840574,-500.0,0.00013699,2]
[400491262,1767661840583,-500.0,0.00013699,2]
[400491263,1767661840595,-500.0,0.00013699,2]
[400491264,1767661840605,-500.0,0.00013699,2]
[400491265,1767661840614,-500.0,0.00013699,2]
[400491266,1767661840623,-500.0,0.00013699,2]
[400491267,1767661840633,-500.0,0.00013699,2]
[400491268,1767661840644,-500.0,0.00013699,2]
[400491269,1767661840654,-500.0,0.00013699,2]
[400491270,1767661840663,-500.0,0.00013699,2]
[400491271,1767661840672,-500.0,0.00013699,2]
[400491272,1767661840682,-500.0,0.00013699,2]
[400491273,1767661840691,-500.0,0.00013699,2]
[400491274,1767661840700,-500.0,0.00013699,2]
[400491275,1767661840710,-500.0,0.00013699,2]
[400491276,1767661840720,-500.0,0.00013699,2]
[400491277,1767661840730,-500.0,0.00013699,2]
[400491278,1767661840739,-500.0,0.00013699,2]
[400491279,1767661840749,-500.0,0.00013699,2]
[400491280,1767661840759,-417.0295786,0.00013699,2]
[400491281,1767661840769,-500.0,0.00013699,2]
[400491282,1767661840782,-535.14854462,0.00013699,2]
[400491283,1767661840791,-500.0,0.00013699,2]
[400491284,1767661840800,-500.0,0.00013699,2]
[400491285,1767661840810,-340.3046405,0.00013699,2]
[400491286,1767661840821,-500.0,0.00013699,2]
[400491287,1767661840830,-500.0,0.00013699,2]
[400491288,1767661840839,-500.0,0.00013699,2]
[400491289,1767661840848,-525.09308339,0.00013699,2]
[400491290,1767661840858,-500.0,0.00013699,2]
[400491291,1767661840867,-500.0,0.00013699,2]
[400491292,1767661840877,-500.0,0.00013699,2]
[400491293,1767661840886,-500.0,0.00013699,2]
[400491294,1767661840896,-163.76494806,0.00013699,2]
[400491295,1767661840907,-500.73584344,0.00013699,2]
[400491296,1767661840916,-500.0,0.00013699,2]
[400491297,1767661840925,-500.0,0.00013699,2]
[400491298,1767661840934,-500.0,0.00013699,2]
[400491299,1767661840944,-500.0,0.00013699,2]
[400491300,1767661840953,-500.0,0.00013699,2]
[400491301,1767661840963,-500.0,0.00013699,2]
[400491303,1767661840973,-500.0,0.00013699,2]
[400491305,1767661840983,-500.0,0.00013699,2]
[400491307,1767661840991,-500.0,0.00013699,2]
[400491309,1767661841001,-500.0,0.00013699,2]
[400491311,1767661841011,-500.0,0.00013699,2]
[400491313,1767661841020,-587.68727556,0.00013699,2]
[400491315,1767661841029,-500.0,0.00013699,2]
[400491317,1767661841039,-500.0,0.00013699,2]
[400491319,1767661841048,-500.0,0.00013699,2]
[400491320,1767661841057,-500.0,0.00013699,2]
[400491322,1767661841068,-500.0,0.00013699,2]
[400491324,1767661841078,-500.0,0.00013699,2]
[400491325,1767661841087,-500.0,0.00013699,2]
[400491326,1767661841096,-500.0,0.00013699,2]
[400491327,1767661841105,-500.0,0.00013699,2]
[400491328,1767661841115,-500.0,0.00013699,2]
[400491329,1767661841124,-500.0,0.00013699,2]
[400491330,1767661841133,-500.0,0.00013699,2]
[400491331,1767661841142,-500.0,0.00013699,2]
[400491332,1767661841152,-500.0,0.00013699,2]
[400491333,1767661841161,-500.0,0.00013699,2]
[400491334,1767661841171,-307.79332386,0.00013699,2]
[400491335,1767661841180,-500.0,0.00013699,2]
[400491336,1767661841190,-158.4882637,0.00013699,2]
[400491337,1767661841199,-158.20996749,0.00013699,2]
[400491338,1767661841208,-500.0,0.00013699,2]
[400491339,1767661841217,-500.0,0.00013699,2]
[400491340,1767661841226,-500.0,0.00013699,2]
[400491341,1767661841238,-500.0867866,0.00013699,2]
[400491342,1767661841248,-500.0,0.00013699,2]
[400491343,1767661841259,-500.0,0.00013699,2]
[400491344,1767661841269,-500.0,0.00013699,2]
[400491345,1767661841279,-1041.66666667,0.00013771,2]
[400491346,1767661841289,-500.0,0.000138,2]
[400491347,1767661841300,-1000.0,0.00013821,2]
[400491348,1767661841309,-500.0,0.00013821,2]
[400491349,1767661841319,-1000.0,0.00013821,2]
[400491350,1767661841329,-1000.0,0.00013821,2]
[400491351,1767661841338,-500.0,0.00013821,2]
[400491352,1767661841349,-1000.0,0.00013821,2]
[400491353,1767661841359,-629.07581158,0.00013821,2]
[400491354,1767661841368,-500.0,0.00013821,2]
[400491355,1767661841378,-252.44576455,0.00013821,2]
[400491356,1767661841389,-1000.0,0.00013821,2]
[400491357,1767661841399,-1000.0,0.00013821,2]
[400491358,1767661841410,-1000.0,0.00013821,2]
[400491359,1767661841420,-1000.0,0.00013821,2]
[400491360,1767661841429,-1000.0,0.00013821,2]
[400491361,1767661841439,-1046.43691011,0.00013821,2]
[400491362,1767661841450,-1000.0,0.00013821,2]
[400491363,1767661841459,-1000.0,0.00013821,2]
[400491364,1767661841468,-1000.0,0.00013821,2]
[400491365,1767661841478,-1000.0,0.00013821,2]
[400491366,1767661841487,-1000.0,0.00013821,2]
[400491367,1767661841498,-1000.0,0.00013821,2]
[400491368,1767661841507,-1000.0,0.00013821,2]
[400491369,1767661841516,-1000.0,0.00013821,2]
[400491370,1767661841525,-1000.0,0.00013821,2]
[400491371,1767661841534,-1000.0,0.00013821,2]
[400491372,1767661841543,-1000.0,0.00013821,2]
[400491373,1767661841553,-777.47286237,0.00013821,2]
[400491374,1767661841562,-1000.0,0.00013821,2]
[400491375,1767661841571,-1000.0,0.00013821,2]
[400491376,1767661841581,-1000.0,0.00013821,2]
[400491377,1767661841590,-343.66799966,0.00013821,2]
[400491378,1767661841599,-1000.0,0.00013821,2]
[400491379,1767661841609,-5000.0,0.0001386,2]
[400491380,1767661841618,-587.0,0.0001402,2]
[400491381,1767661841627,-2351.0,0.00014067,2]
[400491382,1767661841636,-10000.0,0.00014147,2]
[400491383,1767661841647,-3100.18413109,0.00014203,2]
[400491384,1767661841657,-600.0,0.00014221,2]
[400491385,1767661841666,-200.0,0.00014246,2]
[400491386,1767661841676,-1000.0,0.00014247,2]
[400491387,1767661841685,-1000.0,0.00014247,2]
[400491388,1767661841695,-1000.0,0.00014247,2]
[400491389,1767661841704,-1000.0,0.00014247,2]
[400491390,1767661841714,-1000.0,0.00014247,2]
[400491391,1767661841723,-1000.0,0.00014247,2]
[400491392,1767661841732,-1000.0,0.00014247,2]
[400491393,1767661841741,-433.76093812,0.00014247,2]
[400491394,1767661841751,-1000.0,0.00014247,2]
[400491395,1767661841760,-1000.0,0.00014247,2]
[400491396,1767661841769,-157.83137815,0.00014247,2]
[400491397,1767661841779,-1000.0,0.00014247,2]
[400491398,1767661841788,-1110.99561732,0.00014247,2]
[400491399,1767661841799,-689.55355886,0.00014247,2]
[400491400,1767661841808,-1000.0,0.00014247,2]
[400491401,1767661841817,-912.83318582,0.00014247,2]
[400491402,1767661841827,-250.0,0.00014247,2]
[400491403,1767661841835,-252.3369474,0.00014247,2]
[400491404,1767661841844,-752.06472962,0.00014247,2]
[400491405,1767661841855,-1000.0,0.00014247,2]
[400491406,1767661841865,-1000.0,0.00014247,2]
[400491407,1767661841874,-1000.0,0.00014247,2]
[400491408,1767661841883,-1000.0,0.00014247,2]
[400491409,1767661841893,-1000.0,0.00014247,2]
[400491410,1767661841901,-1000.0,0.00014247,2]
[400491411,1767661841911,-1003.44824072,0.00014247,2]
[400491412,1767661841920,-1000.0,0.00014247,2]
[400491413,1767661841929,-1000.0,0.00014247,2]
[400491414,1767661841938,-1000.0,0.00014247,2]
[400491415,1767661841947,-1000.0,0.00014247,2]
[400491416,1767661841956,-1000.0,0.00014247,2]
[400491417,1767661841965,-1000.0,0.00014247,2]
[400491418,1767661841975,-1000.0,0.00014247,2]
[400491419,1767661841984,-1000.0,0.00014247,2]
[400491420,1767661841993,-1000.0,0.00014247,2]
[400491421,1767661842002,-1000.0,0.00014247,2]
[400491422,1767661842011,-298.19005658,0.00014247,2]
[400491423,1767661842020,-1000.0,0.00014247,2]
[400491424,1767661842029,-1000.0,0.00014247,2]
[400491425,1767661842039,-1000.0,0.00014247,2]
[400491426,1767661842048,-500.7533204,0.00014247,2]
[400491427,1767661842057,-1000.0,0.00014247,2]
[400491428,1767661842066,-267.6781502,0.00014247,2]
[400491429,1767661842075,-441.27132624,0.00014247,2]
[400491430,1767661842086,-866.45646788,0.00014247,2]
[400491431,1767661842096,-1000.0,0.00014247,2]
[400491432,1767661842105,-443.0912917,0.00014247,2]
[400491433,1767661842114,-1000.0,0.00014247,2]
[400491434,1767661842123,-1000.0,0.00014247,2]
[400491435,1767661842134,-955.75371242,0.00014247,2]
[400491436,1767661842145,-1000.0,0.00014247,2]
[400491437,1767661842154,-1000.0,0.00014247,2]
[400491438,1767661842164,-1000.0,0.00014247,2]
[400491439,1767661842173,-1000.0,0.00014247,2]
[400491440,1767661842189,-1000.0,0.00014247,2]
[400491441,1767661842203,-1000.0,0.00014247,2]
[400491442,1767661842212,-1000.0,0.00014247,2]
[400491443,1767661842221,-1000.0,0.00014247,2]
[400491444,1767661842231,-1000.0,0.00014247,2]
[400491445,1767661842240,-1000.0,0.00014247,2]
[400491446,1767661842250,-609.90250853,0.00014247,2]
[400491447,1767661842259,-1000.0,0.00014247,2]
[400491448,1767661842268,-1000.0,0.00014247,2]
[400491449,1767661842276,-1000.0,0.00014247,2]
[400491450,1767661842286,-1000.0,0.00014247,2]
[400491451,1767661842295,-1000.0,0.00014247,2]
[400491452,1767661842306,-1000.0,0.00014247,2]
[400491453,1767661842316,-1000.0,0.00014247,2]
[400491454,1767661842326,-1000.0,0.00014247,2]
[400491455,1767661842336,-1000.0,0.00014247,2]
[400491456,1767661842346,-1000.0,0.00014247,2]
[400491457,1767661842357,-1000.0,0.00014247,2]
[400491458,1767661842367,-1000.0,0.00014247,2]
[400491459,1767661842377,-1000.0,0.00014247,2]
[400491460,1767661842386,-310.09338891,0.00014247,2]
[400491461,1767661842395,-295.43360933,0.00014247,2]
[400491462,1767661842406,-1000.0,0.00014247,2]
[400491463,1767661842418,-1000.0,0.00014247,2]
[400491464,1767661842427,-1000.0,0.00014247,2]
[400491465,1767661842437,-1000.0,0.00014247,2]
[400491466,1767661842447,-864.0,0.00014349,2]
[400491467,1767661842456,-1500.0,0.00014368,2]
[400491468,1767661842466,-1500.0,0.00014368,2]
[400491469,1767661842475,-1500.0,0.00014368,2]
[400491470,1767661842485,-881.28002084,0.00014368,2]
[400491471,1767661842494,-818.87701711,0.00014368,2]
[400491472,1767661842503,-1500.0,0.00014368,2]
[400491473,1767661842512,-1500.0,0.00014368,2]
[400491474,1767661842527,-1500.0,0.00014368,2]
[400491475,1767661842548,-1500.0,0.00014368,2]
[400491476,1767661842557,-1510.54164352,0.00014368,2]
[400491477,1767661842566,-1500.0,0.00014368,2]
[400491479,1767661842575,-740.27229345,0.00014368,2]
[400491480,1767661842584,-1500.0,0.00014368,2]
[400491482,1767661842594,-1500.0,0.00014368,2]
[400491484,1767661842603,-1500.0,0.00014368,2]
[400491486,1767661842612,-720.55709982,0.00014368,2]
[400491488,1767661842621,-1500.0,0.00014368,2]
[400491490,1767661842631,-1500.0,0.00014368,2]
[400491491,1767661842640,-1500.0,0.00014368,2]
[400491492,1767661842649,-1500.0,0.00014368,2]
[400491494,1767661842658,-1500.0,0.00014368,2]
[400491495,1767661842668,-1500.0,0.00014368,2]
[400491496,1767661842678,-1500.0,0.00014368,2]
[400491497,1767661842688,-1500.0,0.00014368,2]
[400491498,1767661842697,-151.0,0.00014418,2]
[400491499,1767661842707,-151.0,0.00014418,2]
[400491500,1767661842716,-213.74766924,0.00014418,2]
[400491501,1767661842725,-200.0,0.00014735,2]
[400491502,1767661842735,-200.0,0.00014735,2]
[400491503,1767661842745,-86118.06108283,0.00014736,2]
[400491504,1767661842761,-829.03730397,0.00014736,2]
[400491505,1767661842772,-832.12920319,0.00014736,2]
[400491506,1767661842783,-2694.248208,0.00014736,2]
[400491507,1767661842801,-566.12,0.00013698,2]
[400491508,1767661842810,-2148.31362457,0.00014736,2]
[400491542,1767662043355,1006.65089669,9.274e-05,2]
[400491801,1767662231770,500.0,0.00030136,120]
[400491802,1767662232023,500.0,0.00030136,120]
[400491803,1767662232254,500.0,0.00030136,120]
[400491804,1767662232552,500.0,0.00030136,120]
[400491805,1767662232812,500.0,0.00030136,120]
[400491806,1767662233053,500.0,0.00030136,120]
[400491808,1767662233303,500.0,0.00030136,120]
[400491809,1767662233567,500.0,0.00030136,120]
[400491811,1767662233792,500.0,0.00030136,120]
[400491812,1767662234029,500.0,0.00030136,120]
[400491813,1767662234263,500.0,0.00030136,120]
[400491814,1767662234514,500.0,0.00030136,120]
[400491816,1767662234751,500.0,0.00030136,120]
[400491818,1767662235015,500.0,0.00030136,120]
[400491821,1767662235489,500.0,0.00030136,120]
[400491822,1767662235735,500.0,0.00030136,120]
[400491824,1767662235977,500.0,0.00030136,120]
[400491826,1767662236301,500.0,0.00030136,120]
[400491828,1767662236553,500.0,0.00030136,120]
[400491829,1767662237131,499.0000001,0.00030136,120]
[400492153,1767662386722,155.0,2e-05,2]
[400492588,1767662801532,500.0,0.0003,120]
[400492726,1767663032316,-550.0,9.3e-05,2]
[400492727,1767663032326,-214.0,9.3e-05,2]
[400492729,1767663032336,-297.66651134,9.4e-05,2]
[400492730,1767663032345,-214.0,9.7e-05,2]
[400492731,1767663032355,-214.0,0.000101,2]
[400492732,1767663032364,-300.0,0.00010198,2]
[400492733,1767663032373,-1200.0,0.00010198,2]
[400492734,1767663032383,-300.0,0.00010199,2]
[400492735,1767663032392,-300.0,0.00010199,2]
[400492736,1767663032402,-300.0,0.00010199,2]
[400492737,1767663032412,-300.0,0.00010199,2]
[400492738,1767663032421,-300.0,0.00010199,2]
[400492739,1767663032431,-300.0,0.00010199,2]
[400492740,1767663032440,-300.0,0.00010199,2]
[400492742,1767663032449,-300.0,0.00010199,2]
[400492744,1767663032459,-300.0,0.00010199,2]
[400492746,1767663032468,-300.0,0.00010199,2]
[400492748,1767663032478,-300.0,0.00010199,2]
[400492749,1767663032487,-300.0,0.00010199,2]
[400492750,1767663032496,-300.0,0.00010199,2]
[400492751,1767663032505,-300.0,0.00010199,2]
[400492753,1767663032514,-300.0,0.00010199,2]
[400492755,1767663032523,-214.0,0.000106,2]
[400492757,1767663032532,-214.0,0.00011,2]
[400492759,1767663032541,-1161.00504737,0.00011216,2]
[400492761,1767663032551,-420.0,0.00011216,2]
[400492763,1767663032562,-1680.0,0.00011218,2]
[400492765,1767663032571,-351.24648339,0.000114,2]
[400492767,1767663032580,-214.0,0.000114,2]
[400492769,1767663032590,-600.0,0.00011552,2]
[400492771,1767663032599,-189.91526602,0.00011597,2]
[400492773,1767663032609,-214.0,0.000118,2]
[400492775,1767663032618,-157.017,0.00012098,2]
[400492777,1767663032628,-22587.61497554,0.00012218,2]
[400492778,1767663032639,-6984.50866251,0.00012218,2]
[400492779,1767663032651,-358.71476247,0.00012218,2]
[400492781,1767663037025,174.39494952,0.00030136,120]
[400492802,1767663038392,-53004.11256548,0.00012218,2]
[400492808,1767663038434,-12942.11470087,0.00012218,2]
[400492810,1767663038447,-934.49182444,0.00012218,2]
[400492812,1767663038460,-3208.939996,0.00012218,2]
[400493018,1767663040542,-576.35107221,0.00012218,2]
[400493060,1767663044340,-14456.35603669,0.00012218,2]
[400493078,1767663046398,-10670.42,0.00012218,2]
[400493079,1767663046434,-42576.84991203,0.00012218,2]
[400493087,1767663066888,151.73695932,0.00030136,120]
[400493120,1767663123742,158.25350026,0.00030136,120]
[400493135,1767663137788,500.0,0.00030136,120]
[400493137,1767663138001,236.78058622,0.00030136,120]
[400493141,1767663141911,269.380317,0.00030136,120]
[400493151,1767663148207,305.78911221,0.00030136,120]
[400493158,1767663159703,225.62725121,0.00030136,120]
[400493170,1767663179002,221.11314144,0.00030136,120]
[400493171,1767663180196,259.64293276,0.00030136,120]
[400493175,1767663185855,500.0,0.00030136,120]
[400493176,1767663186102,500.0,0.00030136,120]
[400493177,1767663186340,277.63951236,0.00030136,120]
[400493194,1767663196001,273.63860851,0.00030136,120]
[400493203,1767663200382,372.92447484,0.00030136,120]
[400493204,1767663204096,335.2810562,0.0003013,120]
[400493205,1767663204601,422.44186788,0.00030136,120]
[400493216,1767663215024,294.05442682,0.00030136,120]
[400493259,1767663308096,346.2,0.00030137,120]
[400493264,1767663321819,153.49191858,0.00030136,120]
[400493295,1767663576019,158.76244948,0.00030136,120]
[400493296,1767663602735,159.39143234,0.00023812,120]
[400493303,1767663648785,500.0,0.00030136,120]
[400493304,1767663649023,500.0,0.00030136,120]
[400493305,1767663649267,500.0,0.00030136,120]
[400493306,1767663649517,500.0,0.00030136,120]
[400493307,1767663649787,500.0,0.00030136,120]
[400493308,1767663650027,500.0,0.00030136,120]
[400493309,1767663650269,500.0,0.00030136,120]
[400493310,1767663650518,500.0,0.00030136,120]
[400493311,1767663650749,500.0,0.00030136,120]
[400493312,1767663651013,540.84864281,0.00030136,120]
[400493352,1767664101857,157.48079502,0.0002,120]
[400493367,1767664232439,-550.0,9.3e-05,2]
[400493369,1767664232449,-15.35203768,9.3e-05,2]
[400493371,1767664232463,-453.10796232,9.3e-05,2]
[400493373,1767664232472,-312.89557217,9.35e-05,2]
[400493375,1767664232482,-28.40926109,9.7e-05,2]
[400493377,1767664232493,-440.05073891,9.7e-05,2]
[400493378,1767664232502,-468.46,0.000101,2]
[400493380,1767664232512,-468.46,0.000106,2]
[400493382,1767664232522,-468.46,0.00011,2]
[400493384,1767664232532,-369.21677517,0.0001135,2]
[400493386,1767664232541,-468.46,0.000114,2]
[400493388,1767664232550,-186.35548945,0.00011675,2]
[400493390,1767664232559,-300.0,0.00011774,2]
[400493391,1767664232568,-1200.0,0.00011774,2]
[400493392,1767664232577,-3610.94350458,0.00011775,2]
[400493394,1767664232589,-8503.73171501,0.00011775,2]
[400493395,1767664232605,-1423.65178104,0.00011775,2]
[400493432,1767664238467,-26929.29607967,0.00011775,2]
[400493434,1767664238477,-485.0,0.00011775,2]
[400493436,1767664238487,-833.09406132,0.00011775,2]
[400493439,1767664238500,-364.31587042,0.00011775,2]
[400493441,1767664238510,-675.39794098,0.00011775,2]
[400493443,1767664238519,-468.46,0.000118,2]
[400493445,1767664238528,-500.0,0.00011829,2]
[400493447,1767664238538,-500.0,0.00011829,2]
[400493449,1767664238547,-500.0,0.00011829,2]
[400493451,1767664238557,-500.0,0.00011829,2]
[400493453,1767664238566,-500.0,0.00011829,2]
[400493454,1767664238575,-419.2489513,0.00011829,2]
[400493457,1767664238585,-500.0,0.00011829,2]
[400493459,1767664238595,-328.28736938,0.00011829,2]
[400493461,1767664238604,-500.0,0.00011829,2]
[400493463,1767664238613,-500.0,0.00011829,2]
[400493465,1767664238623,-176.21561117,0.00011829,2]
[400493467,1767664238633,-500.0,0.00011829,2]
[400493469,1767664238642,-500.0,0.00011829,2]
[400493471,1767664238651,-500.0,0.00011829,2]
[400493473,1767664238661,-500.0,0.00011829,2]
[400493475,1767664238671,-409.28423371,0.00011829,2]
[400493477,1767664238679,-500.0,0.00011829,2]
[400493479,1767664238689,-500.0,0.00011829,2]
[400493481,1767664238698,-326.41107263,0.00011829,2]
[400493483,1767664238707,-500.0,0.00011829,2]
[400493485,1767664238721,-500.0,0.00011829,2]
[400493487,1767664238730,-2409.5696866,0.00011845,2]
[400493489,1767664238740,-291.07613909,0.00011944,2]
[400493491,1767664238750,-500.0,0.00012098,2]
[400493494,1767664238760,-396.17562293,0.00012098,2]
[400493495,1767664238770,-610.56374912,0.00012098,2]
[400493498,1767664238779,-610.56374912,0.00012098,2]
[400493499,1767664238789,-610.56374912,0.00012098,2]
[400493502,1767664238800,-500.0,0.00012098,2]
[400493504,1767664238810,-610.56374912,0.00012098,2]
[400493506,1767664238820,-610.56374912,0.00012098,2]
[400493508,1767664238830,-610.56374912,0.00012098,2]
[400493510,1767664238840,-610.56374912,0.00012098,2]
[400493512,1767664238850,-169.65042773,0.00012098,2]
[400493514,1767664238860,-610.56374912,0.00012098,2]
[400493516,1767664238870,-610.56374912,0.00012098,2]
[400493518,1767664238879,-500.0,0.00012098,2]
[400493519,1767664238889,-500.0,0.00012098,2]
[400493521,1767664238899,-610.56374912,0.00012098,2]
[400493523,1767664238908,-610.56374912,0.00012098,2]
[400493525,1767664238918,-610.56374912,0.00012098,2]
[400493527,1767664238928,-500.0,0.00012098,2]
[400493529,1767664238938,-610.56374912,0.00012098,2]
[400493531,1767664238948,-610.56374912,0.00012098,2]
[400493533,1767664238959,-610.56374912,0.00012098,2]
[400493536,1767664238969,-610.56374912,0.00012098,2]
[400493538,1767664238978,-610.56374912,0.00012098,2]
[400493540,1767664238988,-610.56374912,0.00012098,2]
[400493541,1767664238998,-610.56374912,0.00012098,2]
[400493543,1767664239008,-610.56374912,0.00012098,2]
[400493545,1767664239018,-663.98807717,0.00012098,2]
[400493547,1767664239028,-663.98807717,0.00012098,2]
[400493549,1767664239037,-663.98807717,0.00012098,2]
[400493551,1767664239046,-663.98807717,0.00012098,2]
[400493554,1767664239056,-663.98807717,0.00012098,2]
[400493556,1767664239065,-663.98807717,0.00012098,2]
[400493557,1767664239075,-663.98807717,0.00012098,2]
[400493559,1767664239088,-663.98807717,0.00012098,2]
[400493561,1767664239097,-17387.17218678,0.00012099,2]
[400493564,1767664239109,-822.42279838,0.00012099,2]
[400493566,1767664239120,-1107.56081372,0.00012099,2]
[400493568,1767664239131,-1049.11911392,0.00012099,2]
[400493570,1767664239142,-890.15205145,0.00012099,2]
[400493572,1767664239154,-281.00478041,0.00012099,2]
[400493574,1767664239166,-350.25971563,0.00012099,2]
[400493577,1767664239179,-978112.30853971,0.00012099,2]
[400493579,1767664239188,-150.94494562,0.00012187,2]
[400493581,1767664239197,-154.32507995,0.00012187,2]
[400493583,1767664239207,-500.0,0.00012187,2]
[400493585,1767664239216,-500.0,0.00012187,2]
[400493586,1767664239225,-500.0,0.00012187,2]
[400493588,1767664239234,-153.00210179,0.00012187,2]
[400493590,1767664239244,-151.53607853,0.00012187,2]
[400493592,1767664239252,-500.0,0.00012187,2]
[400493594,1767664239262,-500.0,0.00012187,2]
[400493596,1767664239271,-500.0,0.00012187,2]
[400493598,1767664239280,-151.92238479,0.00012187,2]
[400493601,1767664239290,-166.775,0.000122,2]
[400493603,1767664239299,-10024.10390901,0.000122,2]
[400493605,1767664239308,-468.46,0.000123,2]
[400493607,1767664239318,-500.0,0.00012324,2]
[400493609,1767664239327,-500.0,0.00012324,2]
[400493611,1767664239336,-169.90389408,0.00012324,2]
[400493613,1767664239345,-500.0,0.00012324,2]
[400493615,1767664239354,-197.09370632,0.00012324,2]
[400493617,1767664239363,-500.0,0.00012324,2]
[400493619,1767664239372,-609.59469468,0.00012324,2]
[400493621,1767664239381,-500.0,0.00012324,2]
[400493623,1767664239391,-152.00675301,0.00012324,2]
[400493625,1767664239400,-751.82,0.00012329,2]
[400493627,1767664239409,-626.51,0.00012329,2]
[400493629,1767664239418,-522.09,0.00012329,2]
[400493631,1767664239427,-435.08,0.00012329,2]
[400493633,1767664239436,-362.57,0.00012329,2]
[400493635,1767664239445,-302.14,0.00012329,2]
[400493636,1767664239454,-251.78,0.00012329,2]
[400493639,1767664239466,-209.82,0.00012329,2]
[400493640,1767664239475,-174.85,0.00012329,2]
[400493642,1767664239484,-874.26,0.00012329,2]
[400493644,1767664239494,-151.14117939,0.00012461,2]
[400493646,1767664239503,-500.0,0.00012461,2]
[400493648,1767664239512,-500.0,0.00012461,2]
[400493650,1767664239521,-500.0,0.00012461,2]
[400493652,1767664239531,-500.0,0.00012461,2]
[400493654,1767664239539,-202.6039413,0.00012461,2]
[400493656,1767664239548,-500.0,0.00012461,2]
[400493658,1767664239557,-158.922237,0.00012461,2]
[400493660,1767664239567,-300.0,0.00012461,2]
[400493662,1767664239578,-300.0,0.00012461,2]
[400493665,1767664239587,-300.0,0.00012461,2]
[400493667,1767664239597,-300.0,0.00012461,2]
[400493669,1767664239606,-300.0,0.00012461,2]
[400493671,1767664239615,-300.0,0.00012461,2]
[400493672,1767664239624,-300.0,0.00012461,2]
[400493673,1767664239633,-300.0,0.00012461,2]
[400493674,1767664239642,-300.0,0.00012461,2]
[400493675,1767664239652,-300.0,0.00012461,2]
[400493676,1767664239660,-300.0,0.00012461,2]
[400493677,1767664239669,-300.0,0.00012461,2]
[400493678,1767664239679,-300.0,0.00012461,2]
[400493679,1767664239688,-300.0,0.00012461,2]
[400493680,1767664239697,-300.0,0.00012461,2]
[400493681,1767664239706,-600.0,0.00012461,2]
[400493682,1767664239716,-193.3328023,0.00012598,2]
[400493683,1767664239725,-500.0,0.00012598,2]
[400493684,1767664239734,-153.84819515,0.00012598,2]
[400493685,1767664239743,-205.70539229,0.00012598,2]
[400493686,1767664239752,-500.0,0.00012598,2]
[400493687,1767664239762,-468.46,0.000127,2]
[400493688,1767664239771,-339.84907451,0.00012719,2]
[400493689,1767664239780,-1359.39629804,0.00012719,2]
[400493690,1767664239789,-3058.64167058,0.00012719,2]
[400493691,1767664239798,-5437.58519215,0.00012719,2]